[Event "2nd Gujarat Open 2019"]
[Site "Ahmedabad, Gujarat"]
[Date "2019.09.25"]
[Round "5.19"]
[White "Pranav Vijay"]
[Black "Satkar, Chirag"]
[Result "*"]
[ECO "C84"]
[WhiteElo "2265"]
[BlackElo "2052"]
[Annotator "ChessBase"]
[PlyCount "37"]
[EventDate "2019.09.22"]
[EventCountry "IND"]
[SourceTitle "playchess.com"]
[Source "ChessBase"]
[SourceQuality "1"]
[TimeControl "5400+30"]

1. e4 {[%emt 0:06:23]} e5 {[%emt 0:00:01]} 2. Nf3 {[%emt 0:00:08]} Nc6 {[%emt 0:00:16]} 3. Bb5 {[%emt 0:00:07]} a6 {[%emt 0:00:10]} 4. Ba4 {[%emt 0:00:06]} Nf6 {[%emt 0:00:04]} 5. O-O {[%emt 0:00:09]} Be7 {[%emt 0:00:09]} 6. d3 {[%emt 0:00:37]} b5 {[%emt 0:02:53]} 7. Bb3 {[%emt 0:00:07]} O-O {[%emt 0:00:38]} 8. Nc3 {[%emt 0:00:08]} d6 {[%emt 0:01:17]} 9. a3 {[%emt 0:00:22]} h6 {[%emt 0:07:25]} 10. h3 {[%emt 0:03:37]} Be6 {[%emt 0:05:08]} 11. Nd5 {[%emt 0:03:15]} Qd7 {[%emt 0:13:55]} 12. Re1 {[%emt 0:04:40]} Rfe8 {[%emt 0:06:58]} 13. Bd2 {[%emt 0:02:15]} Nd8 {[%emt 0:03:59]} 14. c4 {[%emt 0:02:13]} Rb8 {[%emt 0:01:08]} 15. Rc1 {[%emt 0:05:53]} c6 {[%emt 0:03:05]} 16. Ne3 {[%emt 0:01:25]} Nb7 {[%emt 0:02:59]} 17. cxb5 {[%emt 0:01:16]} axb5 {[%emt 0:01:01]} 18. Bc4 Bd5 {[%emt 0:00:08]} 19. Bxd5 {[%emt 0:01:17]} *

[Event "2nd Gujarat Open 2019"]
[Site "Ahmedabad, Gujarat"]
[Date "2019.09.25"]
[Round "5.25"]
[White "abzid, Rahman"]
[Black "Srija, Seshadri"]
[Result "0-1"]
[ECO "A06"]
[WhiteElo "1913"]
[BlackElo "2270"]
[Annotator "ChessBase"]
[PlyCount "52"]
[EventDate "2019.09.22"]
[EventCountry "IND"]
[SourceTitle "playchess.com"]
[Source "ChessBase"]
[SourceQuality "1"]
[TimeControl "5400+30"]

1. Nf3 {[%emt 0:00:00]} d5 {[%emt 0:00:00]} 2. e3 {[%emt 0:00:00]} Nf6 {[%emt 0:00:22]} 3. c4 {[%emt 0:00:51]} e6 {[%emt 0:00:11]} 4. b3 {[%emt 0:00:34]} c5 {[%emt 0:01:17]} 5. Bb2 {[%emt 0:00:14]} Nc6 {[%emt 0:00:11]} 6. Be2 {[%emt 0:04:40]} d4 {[%emt 0:02:13]} 7. exd4 {[%emt 0:02:06]} cxd4 {[%emt 0:00:02]} 8. d3 {[%emt 0:00:18]} e5 {[%emt 0:01:33]} 9. O-O {[%emt 0:00:40]} Bd6 {[%emt 0:00:11]} 10. Nbd2 {[%emt 0:00:42]} O-O {[%emt 0:01:02]} 11. a3 {[%emt 0:00:15]} a5 {[%emt 0:00:27]} 12. Re1 {[%emt 0:01:51]} Bf5 {[%emt 0:12:21]} 13. Nh4 {[%emt 0:02:55]} Be6 {[%emt 0:00:16]} 14. g3 {[%emt 0:00:43]} Nd7 {[%emt 0:01:28]} 15. Bf1 {[%emt 0:00:24]} f5 {[%emt 0:07:11]} 16. f4 {[%emt 0:00:29]} Qf6 {[%emt 0:02:58]} 17. Bg2 {[%emt 0:01:06]} Rae8 {[%emt 0:05:52]} 18. fxe5 {[%emt 0:07:04]} Ndxe5 {[%emt 0:00:43]} 19. Ndf3 {[%emt 0:03:45]} Ng4 {[%emt 0:06:28]} 20. Nd2 Nge5 21. Ndf3 Ng4 22. Nd2 Nxh2 23. Rxe6 Rxe6 24. Bd5 Bxg3 25. Ng2 Kh8 26. Bxe6 Qxe6 0-1

[Event "2nd Gujarat Open 2019"]
[Site "Ahmedabad, Gujarat"]
[Date "2019.09.25"]
[Round "5.26"]
[White "Sarwat, Walaa"]
[Black "Pandey Srishti"]
[Result "0-1"]
[ECO "C77"]
[WhiteElo "2236"]
[BlackElo "1928"]
[Annotator "ChessBase"]
[PlyCount "37"]
[EventDate "2019.09.22"]
[EventCountry "IND"]
[SourceTitle "playchess.com"]
[Source "ChessBase"]
[SourceQuality "1"]
[TimeControl "5400+30"]

1. e4 {[%emt 0:00:06]} e5 {[%emt 0:00:00]} 2. Nf3 {[%emt 0:00:09]} Nc6 {[%emt 0:00:00]} 3. Bb5 {[%emt 0:00:19]} a6 {[%emt 0:00:00]} 4. Ba4 {[%emt 0:00:43]} Nf6 {[%emt 0:00:00]} 5. d3 {[%emt 0:01:58]} d6 {[%emt 0:00:02]} 6. c4 {[%emt 0:01:18]} g6 {[%emt 0:00:04]} 7. Nc3 {[%emt 0:00:30]} Bg7 {[%emt 0:00:04]} 8. h3 {[%emt 0:01:08]} O-O {[%emt 0:00:06]} 9. Be3 {[%emt 0:00:43]} Nd7 {[%emt 0:01:12]} 10. Bxc6 {[%emt 0:05:55]} bxc6 {[%emt 0:00:03]} 11. Qd2 {[%emt 0:02:43]} f5 {[%emt 0:06:27]} 12. Bh6 {[%emt 0:03:03]} Nc5 {[%emt 0:04:46]} 13. Bxg7 {[%emt 0:01:27]} Kxg7 {[%emt 0:00:02]} 14. O-O-O {[%emt 0:09:59]} Be6 {[%emt 0:14:09]} 15. b3 {[%emt 0:01:46]} fxe4 {[%emt 0:05:54]} 16. Nxe4 {[%emt 0:02:19]} Nxe4 {[%emt 0:02:21]} 17. dxe4 {[%emt 0:00:16]} c5 {[%emt 0:01:27]} 18. Qa5 {[%emt 0:03:20]} Qe7 {[%emt 0:00:39]} 19. Rd3 {[%emt 0:01:25]} 0-1

[Event "2nd Gujarat Open 2019"]
[Site "Ahmedabad, Gujarat"]
[Date "2019.09.25"]
[Round "5.27"]
[White "Gandhi, Anish"]
[Black "Fathima, Abdeen"]
[Result "1-0"]
[ECO "B90"]
[WhiteElo "2201"]
[BlackElo "1937"]
[Annotator "ChessBase"]
[PlyCount "36"]
[EventDate "2019.09.22"]
[EventCountry "IND"]
[SourceTitle "playchess.com"]
[Source "ChessBase"]
[SourceQuality "1"]
[TimeControl "5400+30"]

1. e4 {[%emt 0:00:00]} c5 {[%emt 0:00:30]} 2. Nf3 {[%emt 0:00:00]} d6 {[%emt 0:00:49]} 3. d4 {[%emt 0:00:00]} cxd4 {[%emt 0:00:36]} 4. Nxd4 {[%emt 0:00:00]} Nf6 {[%emt 0:00:06]} 5. Nc3 {[%emt 0:00:00]} a6 {[%emt 0:00:05]} 6. h3 {[%emt 0:00:12]} h5 {[%emt 0:07:33]} 7. Bg5 {[%emt 0:02:04]} Nbd7 {[%emt 0:02:06]} 8. f4 {[%emt 0:03:04]} Qc7 {[%emt 0:03:21]} 9. Qf3 {[%emt 0:01:52]} e6 {[%emt 0:05:44]} 10. O-O-O {[%emt 0:02:04]} b5 {[%emt 0:04:58]} 11. a3 {[%emt 0:02:27]} Bb7 {[%emt 0:03:01]} 12. Bd3 {[%emt 0:00:47]} Be7 {[%emt 0:03:35]} 13. g4 {[%emt 0:02:12]} Qb6 {[%emt 0:03:16]} 14. Nb3 {[%emt 0:02:35]} g6 {[%emt 0:05:24]} 15. Qe2 {[%emt 0:02:36]} Nc5 {[%emt 0:02:51]} 16. Nxc5 {[%emt 0:01:36]} dxc5 {[%emt 0:00:24]} 17. e5 {[%emt 0:03:33]} Ng8 {[%emt 0:05:30]} 18. Be4 {[%emt 0:04:15]} b4 {[%emt 0:06:10]} 1-0

[Event "2nd Gujarat Open 2019"]
[Site "Ahmedabad, Gujarat"]
[Date "2019.09.25"]
[Round "5.28"]
[White "Patil, Pratik"]
[Black "Priyankara, Chamil"]
[Result "1-0"]
[ECO "B22"]
[WhiteElo "2187"]
[BlackElo "1917"]
[Annotator "ChessBase"]
[PlyCount "31"]
[EventDate "2019.09.22"]
[EventCountry "IND"]
[SourceTitle "playchess.com"]
[Source "ChessBase"]
[SourceQuality "1"]
[TimeControl "5400+30"]

1. e4 {[%emt 0:00:36]} c5 {[%emt 0:07:23]} 2. c3 {[%emt 0:00:09]} d5 {[%emt 0:01:37]} 3. exd5 {[%emt 0:00:08]} Nf6 {[%emt 0:00:03]} 4. d4 {[%emt 0:00:30]} Nxd5 {[%emt 0:00:20]} 5. Nf3 {[%emt 0:13:15]} e6 {[%emt 0:02:15]} 6. Bd3 {[%emt 0:03:18]} cxd4 {[%emt 0:00:17]} 7. cxd4 {[%emt 0:13:20]} Bb4+ {[%emt 0:00:28]} 8. Bd2 {[%emt 0:00:46]} Bxd2+ {[%emt 0:00:07]} 9. Qxd2 {[%emt 0:00:16]} O-O {[%emt 0:00:18]} 10. O-O {[%emt 0:03:29]} Nc6 {[%emt 0:00:11]} 11. Nc3 {[%emt 0:00:38]} Ncb4 {[%emt 0:01:01]} 12. Bc4 {[%emt 0:02:10]} Nf6 {[%emt 0:04:01]} 13. Rac1 {[%emt 0:00:40]} b6 {[%emt 0:01:45]} 14. Ne5 {[%emt 0:01:29]} Bb7 {[%emt 0:02:31]} 15. Rfe1 {[%emt 0:01:59]} Nc6 {[%emt 0:07:34]} 16. Rcd1 {[%emt 0:11:33]} 1-0

[Event "2nd Gujarat Open 2019"]
[Site "Ahmedabad, Gujarat"]
[Date "2019.09.25"]
[Round "5.30"]
[White "Kadam, Nikhil"]
[Black "Soham Datar"]
[Result "0-1"]
[ECO "B90"]
[WhiteElo "1705"]
[BlackElo "2160"]
[Annotator "ChessBase"]
[PlyCount "49"]
[EventDate "2019.09.22"]
[EventCountry "IND"]
[SourceTitle "playchess.com"]
[Source "ChessBase"]
[SourceQuality "1"]
[TimeControl "5400+30"]

1. e4 {[%emt 0:00:00]} c5 {[%emt 0:00:00]} 2. Nf3 {[%emt 0:00:00]} d6 {[%emt 0:00:38]} 3. d4 {[%emt 0:00:25]} cxd4 {[%emt 0:00:05]} 4. Nxd4 {[%emt 0:00:05]} Nf6 {[%emt 0:00:03]} 5. Nc3 {[%emt 0:00:07]} a6 {[%emt 0:00:08]} 6. h3 {[%emt 0:01:32]} e6 {[%emt 0:00:03]} 7. Bg5 {[%emt 0:04:45]} h6 {[%emt 0:00:14]} 8. Be3 {[%emt 0:04:30]} Be7 {[%emt 0:00:06]} 9. Qe2 {[%emt 0:06:22]} b5 {[%emt 0:00:21]} 10. a3 {[%emt 0:01:45]} Bb7 {[%emt 0:00:11]} 11. O-O-O {[%emt 0:06:11]} Nbd7 {[%emt 0:00:53]} 12. f4 {[%emt 0:15:19]} Qc7 {[%emt 0:07:21]} 13. Bf2 {[%emt 0:08:05]} O-O {[%emt 0:10:15]} 14. Bh4 {[%emt 0:05:23]} Rfe8 {[%emt 0:00:18]} 15. g4 {[%emt 0:02:14]} Nxe4 {[%emt 0:06:24]} 16. Nxe4 {[%emt 0:01:12]} Bxh4 {[%emt 0:00:00]} 17. Bg2 {[%emt 0:00:30]} d5 {[%emt 0:00:00]} 18. Nc3 {[%emt 0:00:30]} Qxf4+ {[%emt 0:00:00]} 19. Kb1 {[%emt 0:00:30]} Qf2 {[%emt 0:00:00]} 20. Rhf1 {[%emt 0:00:30]} Qxe2 {[%emt 0:00:00]} 21. Ndxe2 {[%emt 0:00:30]} Ne5 {[%emt 0:00:00]} 22. Nf4 {[%emt 0:00:30]} Nc4 {[%emt 0:00:00]} 23. Rd3 {[%emt 0:00:30]} Rac8 {[%emt 0:00:00]} 24. Ka2 {[%emt 0:00:30]} Bg5 {[%emt 0:00:00]} 25. Nh5 {[%emt 0:00:30]} 0-1

[Event "2nd Gujarat Open 2019"]
[Site "Ahmedabad, Gujarat"]
[Date "2019.09.25"]
[Round "5.33"]
[White "Pimpalkhare Vedant"]
[Black "Vijay, Anand M."]
[Result "1-0"]
[ECO "A05"]
[WhiteElo "2104"]
[BlackElo "1806"]
[Annotator "RC"]
[PlyCount "39"]
[EventDate "2019.09.22"]
[EventCountry "IND"]
[SourceTitle "playchess.com"]
[Source "ChessBase"]
[SourceQuality "1"]
[TimeControl "5400+30"]

1. Nf3 {[%emt 0:00:00]} Nf6 {[%emt 0:00:18]} 2. g3 {[%emt 0:00:07]} b6 {[%emt 0:00:18]} 3. Bg2 {[%emt 0:00:14]} Bb7 {[%emt 0:00:05]} 4. c4 {[%emt 0:00:50]} e6 {[%emt 0:00:14]} 5. O-O {[%emt 0:00:13]} Be7 {[%emt 0:01:56]} 6. b3 {[%emt 0:05:25]} O-O {[%emt 0:05:30]} 7. Bb2 c5 {[%emt 0:03:32]} 8. d4 {[%emt 0:01:32]} d6 {[%emt 0:00:18]} 9. Nc3 {[%emt 0:00:37]} Ne4 {[%emt 0:02:03]} 10. Qc2 {[%emt 0:02:28]} Nxc3 {[%emt 0:00:27]} 11. Bxc3 {[%emt 0:00:14]} Nd7 {[%emt 0:02:59]} 12. Ng5 {[%emt 0:08:20]} Bxg5 {[%emt 0:00:09]} 13. Bxb7 {[%emt 0:00:03]} Rb8 {[%emt 0:00:06]} 14. Be4 {[%emt 0:00:55]} f5 {[%emt 0:01:18]} 15. Bg2 {[%emt 0:00:48]} Bf6 {[%emt 0:05:14]} 16. Rad1 {[%emt 0:03:15]} Qc7 {[%emt 0:02:48]} 17. Rd2 {[%emt 0:10:47]} cxd4 {[%emt 0:17:44]} 18. Bxd4 {[%emt 0:00:17]} Bxd4 {[%emt 0:00:09]} 19. Rxd4 {[%emt 0:00:04]} Nf6 {[%emt 0:00:05]} 20. Rd2 {[%emt 0:00:56]} 1-0

[Event "2nd Gujarat Open 2019"]
[Site "Ahmedabad, Gujarat"]
[Date "2019.09.25"]
[Round "5.34"]
[White "Nirnay Garg"]
[Black "Jay Kundaliya"]
[Result "0-1"]
[ECO "A45"]
[WhiteElo "1585"]
[BlackElo "2097"]
[Annotator "NA RC"]
[PlyCount "78"]
[EventDate "2019.09.22"]
[EventCountry "IND"]
[SourceTitle "playchess.com"]
[Source "ChessBase"]
[SourceQuality "1"]
[TimeControl "5400+30"]

1. d4 {[%emt 0:00:00]} Nf6 {[%emt 0:00:25]} 2. Bf4 {[%emt 0:00:04]} e6 {[%emt 0:01:39]} 3. e3 {[%emt 0:00:21]} d5 {[%emt 0:03:35]} 4. Nf3 {[%emt 0:00:43]} c5 {[%emt 0:04:33]} 5. c3 {[%emt 0:00:31]} Nc6 {[%emt 0:00:34]} 6. Nbd2 {[%emt 0:00:34]} Nh5 {[%emt 0:10:19]} 7. Bg5 {[%emt 0:01:07]} Be7 {[%emt 0:06:23]} 8. Bxe7 {[%emt 0:00:47]} Qxe7 {[%emt 0:00:03]} 9. Bd3 {[%emt 0:01:08]} Nf6 {[%emt 0:09:53]} 10. O-O {[%emt 0:01:41]} Qd6 {[%emt 0:06:06]} 11. Qe2 {[%emt 0:00:35]} O-O {[%emt 0:00:45]} 12. dxc5 {[%emt 0:02:19]} Qxc5 {[%emt 0:00:13]} 13. e4 {[%emt 0:00:07]} dxe4 {[%emt 0:04:43]} 14. Nxe4 {[%emt 0:00:20]} Nxe4 {[%emt 0:00:22]} 15. Qxe4 {[%emt 0:00:12]} g6 {[%emt 0:01:37]} 16. Rfe1 {[%emt 0:03:39]} Bd7 {[%emt 0:08:53]} 17. Rad1 {[%emt 0:00:38]} Rad8 {[%emt 0:00:43]} 18. Ne5 {[%emt 0:01:24]} Nxe5 {[%emt 0:02:34]} 19. Qxe5 {[%emt 0:00:09]} Qxe5 {[%emt 0:00:28]} 20. Rxe5 {[%emt 0:00:06]} Bc6 {[%emt 0:00:09]} 21. Re2 {[%emt 0:00:31]} Rd7 {[%emt 0:00:24]} 22. Ree1 {[%emt 0:02:51]} Rfd8 {[%emt 0:00:14]} 23. Be2 {[%emt 0:00:24]} Rd2 {[%emt 0:00:12]} 24. f3 {[%emt 0:00:15]} R8d7 25. Kf2 {[%emt 0:00:30]} Rxb2 26. Ke3 {[%emt 0:00:30]} Rxd1 27. Rxd1 {[%emt 0:00:30]} Rxa2 28. Bf1 {[%emt 0:00:30]} Kg7 29. h4 {[%emt 0:00:30]} h5 30. Kd4 {[%emt 0:00:30]} Kf6 31. Kc5 {[%emt 0:00:30]} Ra5+ 32. Kd6 {[%emt 0:00:30]} Rd5+ 33. Rxd5 {[%emt 0:00:30]} Bxd5 34. Bb5 {[%emt 0:00:30]} a6 35. Be8 {[%emt 0:00:30]} b5 36. Kc7 {[%emt 0:00:30]} Ke7 37. Bd7 {[%emt 0:00:30]} e5 38. Bc6 {[%emt 0:00:30]} Bxc6 39. Kxc6 {[%emt 0:00:30]} f5 0-1

[Event "2nd Gujarat Open 2019"]
[Site "Ahmedabad, Gujarat"]
[Date "2019.09.25"]
[Round "5.35"]
[White "Kumar, Gaurav"]
[Black "Daakshin Arun"]
[Result "1-0"]
[ECO "B68"]
[WhiteElo "2096"]
[BlackElo "1691"]
[Annotator "NA RC"]
[PlyCount "80"]
[EventDate "2019.09.22"]
[EventCountry "IND"]
[SourceTitle "playchess.com"]
[Source "ChessBase"]
[SourceQuality "1"]
[TimeControl "5400+30"]

1. e4 {[%emt 0:02:38]} c5 {[%emt 0:00:00]} 2. Nc3 {[%emt 0:01:09]} a6 {[%emt 0:00:08]} 3. Nf3 {[%emt 0:04:36]} d6 {[%emt 0:00:06]} 4. d4 {[%emt 0:00:02]} cxd4 {[%emt 0:00:10]} 5. Nxd4 {[%emt 0:00:02]} Nf6 {[%emt 0:00:07]} 6. Bg5 {[%emt 0:00:03]} Nc6 {[%emt 0:00:45]} 7. Qd2 {[%emt 0:02:01]} e6 {[%emt 0:01:53]} 8. O-O-O {[%emt 0:00:18]} Bd7 {[%emt 0:00:11]} 9. f4 {[%emt 0:00:02]} Be7 {[%emt 0:00:30]} 10. Nf3 {[%emt 0:00:11]} Qc7 {[%emt 0:01:29]} 11. e5 {[%emt 0:00:09]} dxe5 {[%emt 0:00:46]} 12. fxe5 {[%emt 0:00:03]} Ng8 {[%emt 0:05:03]} 13. Bxe7 {[%emt 0:01:26]} Ngxe7 {[%emt 0:00:31]} 14. Ne4 {[%emt 0:00:35]} h6 {[%emt 0:11:47]} 15. Nd6+ {[%emt 0:02:25]} Kf8 {[%emt 0:00:15]} 16. Nxf7 {[%emt 0:01:33]} Kxf7 {[%emt 0:00:47]} 17. Qxd7 {[%emt 0:00:11]} Qxd7 {[%emt 0:00:12]} 18. Rxd7 {[%emt 0:00:03]} b5 {[%emt 0:01:59]} 19. a4 {[%emt 0:02:12]} bxa4 {[%emt 0:03:42]} 20. Bc4 {[%emt 0:00:03]} Rhd8 {[%emt 0:08:39]} 21. Rhd1 {[%emt 0:02:55]} Rxd7 {[%emt 0:01:01]} 22. Rxd7 {[%emt 0:00:03]} g5 {[%emt 0:08:59]} 23. Rd6 {[%emt 0:01:31]} Nd8 {[%emt 0:07:42]} 24. Nd4 {[%emt 0:00:38]} Rc8 25. Bxa6 {[%emt 0:00:30]} Ra8 26. Bc4 {[%emt 0:00:30]} Rc8 27. Ba2 {[%emt 0:00:30]} Rb8 28. Nxe6 {[%emt 0:00:30]} Nxe6 29. Rxe6 {[%emt 0:00:30]} Ke8 30. Rxh6 {[%emt 0:00:30]} Kd7 31. Be6+ {[%emt 0:00:30]} Kc7 32. Rh7 {[%emt 0:00:30]} Re8 33. Rg7 {[%emt 0:00:30]} Kd8 34. Rxg5 {[%emt 0:00:30]} Nc6 35. Bd5 {[%emt 0:00:30]} Nxe5 36. h4 {[%emt 0:00:30]} Nd7 37. Bc6 {[%emt 0:00:30]} Re1+ 38. Kd2 {[%emt 0:00:30]} Re6 39. Bxd7 {[%emt 0:00:30]} Kxd7 40. h5 {[%emt 0:00:30]} Rh6 1-0

[Event "2nd Gujarat Open 2019"]
[Site "Ahmedabad, Gujarat"]
[Date "2019.09.25"]
[Round "5.36"]
[White "Chauhan, Joy"]
[Black "Anadkat Kartavya"]
[Result "0-1"]
[ECO "A01"]
[WhiteElo "1872"]
[BlackElo "2088"]
[Annotator "NA RC"]
[PlyCount "84"]
[EventDate "2019.09.22"]
[EventCountry "IND"]
[SourceTitle "playchess.com"]
[Source "ChessBase"]
[SourceQuality "1"]
[TimeControl "5400+30"]

1. b3 {[%emt 0:01:02]} Nf6 {[%emt 0:00:00]} 2. Bb2 {[%emt 0:00:23]} g6 {[%emt 0:00:00]} 3. c4 {[%emt 0:00:40]} Bg7 {[%emt 0:00:00]} 4. Nf3 {[%emt 0:00:44]} O-O {[%emt 0:00:04]} 5. e3 {[%emt 0:02:56]} d6 {[%emt 0:03:45]} 6. Be2 {[%emt 0:01:49]} e5 {[%emt 0:00:14]} 7. d4 {[%emt 0:01:01]} e4 {[%emt 0:00:25]} 8. Nfd2 {[%emt 0:00:33]} h5 {[%emt 0:00:35]} 9. Nc3 {[%emt 0:00:56]} Re8 {[%emt 0:00:14]} 10. Qc2 {[%emt 0:02:55]} Qe7 {[%emt 0:00:07]} 11. h3 {[%emt 0:04:36]} c6 {[%emt 0:02:09]} 12. O-O-O {[%emt 0:05:20]} d5 {[%emt 0:01:34]} 13. Kb1 {[%emt 0:02:25]} a6 {[%emt 0:08:35]} 14. cxd5 {[%emt 0:06:03]} cxd5 {[%emt 0:00:08]} 15. Na4 {[%emt 0:01:10]} Nc6 {[%emt 0:08:55]} 16. a3 {[%emt 0:14:36]} Be6 {[%emt 0:03:37]} 17. b4 {[%emt 0:01:47]} Nd7 {[%emt 0:03:17]} 18. Nb3 {[%emt 0:02:36]} Rec8 {[%emt 0:00:46]} 19. Qd2 {[%emt 0:02:03]} b5 {[%emt 0:01:17]} 20. Nac5 {[%emt 0:00:23]} Nb6 {[%emt 0:00:09]} 21. Nxe6 {[%emt 0:00:48]} Qxe6 {[%emt 0:00:43]} 22. Nc5 {[%emt 0:02:20]} Qe7 {[%emt 0:00:41]} 23. Rc1 {[%emt 0:09:52]} Nc4 {[%emt 0:01:24]} 24. Bxc4 {[%emt 0:00:12]} bxc4 {[%emt 0:00:44]} 25. Na4 {[%emt 0:08:22]} Rcb8 {[%emt 0:01:31]} 26. Nc3 {[%emt 0:00:49]} Qd7 {[%emt 0:00:47]} 27. g4 {[%emt 0:08:47]} h4 {[%emt 0:04:52]} 28. f3 {[%emt 0:00:35]} exf3 {[%emt 0:01:49]} 29. Qf2 {[%emt 0:00:20]} a5 {[%emt 0:05:44]} 30. b5 {[%emt 0:01:17]} Nb4 {[%emt 0:00:01]} 31. Qxf3 {[%emt 0:04:05]} Nd3 {[%emt 0:01:00]} 32. Rc2 {[%emt 0:02:53]} Rxb5 {[%emt 0:00:35]} 33. Nxb5 {[%emt 0:04:08]} Qxb5 {[%emt 0:00:17]} 34. Rd1 {[%emt 0:00:31]} Rb8 {[%emt 0:00:56]} 35. Rxd3 {[%emt 0:00:56]} cxd3 {[%emt 0:00:02]} 36. Rf2 {[%emt 0:00:26]} Rb7 {[%emt 0:00:48]} 37. Qd1 {[%emt 0:02:16]} Bf8 {[%emt 0:03:07]} 38. Ka1 {[%emt 0:00:49]} Qc4 {[%emt 0:01:55]} 39. Qc1 {[%emt 0:02:41]} Rb3 {[%emt 0:00:07]} 40. Rd2 {[%emt 0:02:53]} a4 {[%emt 0:00:33]} 41. Qxc4 {[%emt 0:00:18]} dxc4 {[%emt 0:00:02]} 42. Bc1 {[%emt 0:00:14]} Bxa3 {[%emt 0:00:16]} 0-1

[Event "2nd Gujarat Open 2019"]
[Site "Ahmedabad, Gujarat"]
[Date "2019.09.25"]
[Round "6.1"]
[White "Saptarshi, Roy"]
[Black "Vasquez Schroeder, Rodrigo"]
[Result "1/2-1/2"]
[ECO "B50"]
[WhiteElo "2480"]
[BlackElo "2476"]
[Annotator "ChessBase"]
[PlyCount "76"]
[EventDate "2019.09.22"]
[EventType "swiss"]
[EventCountry "IND"]
[SourceTitle "playchess.com"]
[Source "ChessBase"]
[SourceQuality "1"]
[TimeControl "5400+30"]

1. e4 {[%emt 0:00:00]} c5 {[%emt 0:01:57]} 2. Nf3 {[%emt 0:00:00]} d6 {[%emt 0:00:14]} 3. Bc4 {[%emt 0:00:21]} Nc6 {[%emt 0:00:09]} 4. d3 {[%emt 0:00:20]} Nf6 {[%emt 0:00:15]} 5. h3 {[%emt 0:00:05]} g6 {[%emt 0:00:10]} 6. O-O {[%emt 0:00:36]} Bg7 {[%emt 0:00:10]} 7. Bb3 {[%emt 0:00:26]} O-O {[%emt 0:00:30]} 8. c3 {[%emt 0:00:03]} Rb8 {[%emt 0:02:28]} 9. Re1 {[%emt 0:00:35]} b5 {[%emt 0:04:50]} 10. d4 {[%emt 0:03:03]} e5 {[%emt 0:05:47]} 11. dxc5 {[%emt 0:10:02]} dxc5 {[%emt 0:00:06]} 12. Qxd8 {[%emt 0:00:56]} Rxd8 {[%emt 0:00:31]} 13. Bg5 {[%emt 0:11:17]} c4 {[%emt 0:01:29]} 14. Bc2 {[%emt 0:00:12]} h6 {[%emt 0:01:19]} 15. Be3 {[%emt 0:01:28]} Be6 {[%emt 0:01:11]} 16. Nbd2 {[%emt 0:01:02]} Nh5 {[%emt 0:11:58]} 17. b4 {[%emt 0:10:11]} a5 {[%emt 0:15:38]} 18. a4 {[%emt 0:01:31]} axb4 {[%emt 0:13:10]} 19. axb5 {[%emt 0:00:12]} Nd4 {[%emt 0:00:59]} 20. Ba4 {[%emt 0:28:18]} bxc3 {[%emt 0:12:08]} 21. Nb1 {[%emt 0:00:12]} Nxb5 {[%emt 0:01:56]} 22. Bxb5 {[%emt 0:00:06]} Rxb5 {[%emt 0:00:03]} 23. Nxc3 {[%emt 0:00:06]} Rb3 {[%emt 0:00:17]} 24. Na4 {[%emt 0:01:36]} Rc8 {[%emt 0:02:54]} 25. Nd2 {[%emt 0:08:44]} Rd3 {[%emt 0:01:49]} 26. Nb1 {[%emt 0:09:11]} Rc6 {[%emt 0:06:33]} 27. Nbc3 {[%emt 0:00:36]} Nf4 {[%emt 0:04:57]} 28. Kf1 {[%emt 0:02:33]} Bf8 {[%emt 0:01:09]} 29. Rab1 {[%emt 0:00:42]} Bd6 {[%emt 0:03:14]} 30. Rec1 {[%emt 0:01:34]} Ra6 {[%emt 0:00:38]} 31. h4 {[%emt 0:05:56]} Kg7 {[%emt 0:01:11]} 32. g3 {[%emt 0:00:50]} Bh3+ {[%emt 0:01:49]} 33. Kg1 {[%emt 0:00:09]} Rxa4 {[%emt 0:01:44]} 34. Nxa4 {[%emt 0:00:48]} Ne2+ {[%emt 0:00:06]} 35. Kh2 {[%emt 0:00:03]} Nxc1 {[%emt 0:00:13]} 36. Rxc1 {[%emt 0:00:07]} Ra3 {[%emt 0:02:27]} 37. Nb6 {[%emt 0:00:15]} Be6 {[%emt 0:00:45]} 38. Nxc4 {[%emt 0:00:07]} Ra6 {[%emt 0:00:31]} 1/2-1/2

[Event "2nd Gujarat Open 2019"]
[Site "Ahmedabad, Gujarat"]
[Date "2019.09.25"]
[Round "6.2"]
[White "Rozum, Ivan"]
[Black "Lugovskoy, Maxim"]
[Result "1-0"]
[ECO "A13"]
[WhiteElo "2596"]
[BlackElo "2422"]
[Annotator "ChessBase"]
[PlyCount "83"]
[EventDate "2019.09.22"]
[EventType "swiss"]
[EventCountry "IND"]
[SourceTitle "playchess.com"]
[Source "ChessBase"]
[SourceQuality "1"]
[TimeControl "5400+30"]

1. c4 {[%emt 0:01:30]} e6 {[%emt 0:00:00]} 2. Nf3 {[%emt 0:00:36]} Nf6 {[%emt 0:00:00]} 3. b3 {[%emt 0:01:56]} Be7 {[%emt 0:01:18]} 4. Bb2 {[%emt 0:00:06]} b6 {[%emt 0:02:12]} 5. Nc3 {[%emt 0:08:26]} Bb7 {[%emt 0:00:21]} 6. e3 {[%emt 0:00:53]} c5 {[%emt 0:04:46]} 7. g3 {[%emt 0:09:40]} O-O {[%emt 0:01:54]} 8. Bg2 {[%emt 0:00:17]} d5 {[%emt 0:00:11]} 9. O-O {[%emt 0:00:10]} Ne4 {[%emt 0:09:17]} 10. Qc2 {[%emt 0:10:45]} Nxc3 {[%emt 0:03:20]} 11. Bxc3 {[%emt 0:04:05]} Nc6 {[%emt 0:10:39]} 12. Qb2 {[%emt 0:04:56]} f6 {[%emt 0:04:24]} 13. d4 {[%emt 0:02:26]} cxd4 {[%emt 0:02:59]} 14. exd4 {[%emt 0:01:48]} Re8 {[%emt 0:01:09]} 15. Rfe1 {[%emt 0:00:51]} Bf8 {[%emt 0:01:18]} 16. Nd2 {[%emt 0:07:40]} Qd7 {[%emt 0:04:09]} 17. Nf1 {[%emt 0:00:18]} dxc4 {[%emt 0:02:03]} 18. bxc4 Nd8 {[%emt 0:01:03]} 19. d5 {[%emt 0:05:49]} exd5 {[%emt 0:01:27]} 20. Rxe8 {[%emt 0:00:34]} Qxe8 {[%emt 0:00:06]} 21. cxd5 {[%emt 0:00:11]} Nf7 {[%emt 0:00:38]} 22. Rd1 {[%emt 0:02:56]} Qd7 {[%emt 0:01:01]} 23. Ne3 {[%emt 0:01:13]} Bc5 {[%emt 0:04:30]} 24. Bd4 {[%emt 0:00:45]} Rc8 {[%emt 0:03:13]} 25. h4 {[%emt 0:00:51]} Nd6 {[%emt 0:02:09]} 26. Kh2 {[%emt 0:01:34]} Bxd4 {[%emt 0:05:29]} 27. Qxd4 {[%emt 0:01:15]} f5 {[%emt 0:09:16]} 28. Qf4 {[%emt 0:02:56]} g6 {[%emt 0:02:39]} 29. h5 {[%emt 0:03:09]} Qe7 {[%emt 0:03:48]} 30. Bf3 {[%emt 0:05:57]} Rf8 {[%emt 0:01:04]} 31. Nc4 {[%emt 0:03:57]} Nxc4 {[%emt 0:01:32]} 32. Qxc4 {[%emt 0:00:26]} Qd6 {[%emt 0:01:35]} 33. Re1 {[%emt 0:01:59]} gxh5 {[%emt 0:05:11]} 34. Qh4 {[%emt 0:07:03]} Qf6 {[%emt 0:01:40]} 35. Qxf6 {[%emt 0:03:34]} Rxf6 {[%emt 0:00:03]} 36. d6 {[%emt 0:00:17]} Be4 {[%emt 0:04:19]} 37. d7 {[%emt 0:00:32]} Rd6 {[%emt 0:03:24]} 38. Rd1 {[%emt 0:00:08]} Bd3 {[%emt 0:00:11]} 39. Be2 {[%emt 0:00:25]} Rxd7 {[%emt 0:00:06]} 40. Rxd3 {[%emt 0:00:05]} Rc7 {[%emt 0:00:11]} 41. Rd2 {[%emt 0:00:16]} Rc6 {[%emt 0:02:08]} 42. Kg2 {[%emt 0:01:54]} 1-0